fUSD/lending_fUSD_20251227
["ID","MTS","AMOUNT","RATE_DAILY","PERIOD"]
[399920919,1766875832207,-398.2429221,0.00016029,2]
[399920920,1766875832228,-4638.41282382,0.00016029,2]
[399920921,1766875832243,-13285.14,0.00016029,2]
[399920922,1766875832255,-4308.48920621,0.00016029,2]
[399920924,1766875837706,-151.0,0.00016019,2]
[399920925,1766875837716,-151.0,0.00016019,2]
[399920926,1766875837726,-457.56345343,0.00016028,2]
[399920927,1766875837735,-402133.39473579,0.00016029,2]
[399920928,1766875837744,-151.0,0.00016039,2]
[399920929,1766875837754,-151.0,0.00016039,2]
[399920930,1766875837763,-391.77,0.0001611,2]
[399920931,1766875837773,-3315.82,0.00016129,2]
[399920932,1766875837783,-150.0,0.00016137,2]
[399920933,1766875837792,-150.0,0.00016137,2]
[399920934,1766875837802,-150.0,0.00016137,2]
[399920935,1766875837812,-150.0,0.00016137,2]
[399920936,1766875837822,-2429.32,0.00016343,2]
[399920937,1766875837832,-1000.0,0.00016343,2]
[399920938,1766875837842,-391.8,0.00016384,2]
[399920939,1766875837851,-500.0,0.00016438,2]
[399920940,1766875837860,-500.0,0.00016438,2]
[399920941,1766875837869,-500.0,0.00016438,2]
[399920942,1766875837878,-500.0,0.00016438,2]
[399920943,1766875837888,-500.0,0.00016438,2]
[399920944,1766875837897,-151.08830065,0.00016438,2]
[399920945,1766875837907,-500.0,0.00016438,2]
[399920946,1766875837916,-500.0,0.00016438,2]
[399920947,1766875837925,-500.0,0.00016438,2]
[399920948,1766875837935,-500.0,0.00016438,2]
[399920950,1766875837945,-1499.24,0.00016438,2]
[399920952,1766875837954,-663.67,0.00016516,2]
[399920954,1766875837964,-150.0,0.00016562,2]
[399920955,1766875837975,-150.0,0.00016617,2]
[399920957,1766875837985,-200.0,0.00016617,2]
[399920959,1766875837994,-150.0,0.00016617,2]
[399920961,1766875838003,-150.0,0.00016617,2]
[399920963,1766875838013,-150.0,0.00016617,2]
[399920965,1766875838023,-150.0,0.00016617,2]
[399920967,1766875838032,-150.0,0.00016617,2]
[399920969,1766875838042,-150.0,0.00016617,2]
[399920971,1766875838051,-150.0,0.00016644,2]
[399920973,1766875838060,-150.0,0.00016644,2]
[399920975,1766875838070,-200.0,0.00016644,2]
[399920977,1766875838079,-150.0,0.00016644,2]
[399920979,1766875838088,-150.0,0.00016644,2]
[399920980,1766875838098,-150.0,0.0001666,2]
[399920982,1766875838107,-200.0,0.00016672,2]
[399920984,1766875838117,-200.0,0.00016672,2]
[399920985,1766875838126,-150.0,0.00016672,2]
[399920986,1766875838136,-200.0,0.00016672,2]
[399920987,1766875838146,-150.0,0.00016699,2]
[399920988,1766875838156,-164.63,0.00016712,2]
[399920989,1766875838166,-150.0,0.00016726,2]
[399920990,1766875838175,-150.0,0.00016727,2]
[399920991,1766875838185,-250.0,0.00016754,2]
[399920992,1766875838200,-22562.21467755,0.000168,2]
[399920993,1766875838210,-2500.0,0.000168,2]
[399920994,1766875838219,-8786.098278,0.000168,2]
[399920995,1766875838228,-820.04865712,0.000168,2]
[399920996,1766875838238,-151.68984803,0.000168,2]
[399920997,1766875838248,-164.8406,0.000168,2]
[399920998,1766875838257,-500.0,0.00016824,2]
[399920999,1766875838267,-214.0,0.00016848,2]
[399921000,1766875838277,-1500.844,0.00016887,2]
[399921001,1766875838286,-620.34093245,0.000169,2]
[399921002,1766875838296,-416.44936262,0.000169,2]
[399921003,1766875838305,-691.50441215,0.000169,2]
[399921004,1766875838314,-338.58723437,0.000169,2]
[399921005,1766875838324,-2177.1884665,0.000169,2]
[399921006,1766875838333,-1724.93499588,0.000169,2]
[399921007,1766875838343,-150.0,0.00016973,2]
[399921008,1766875838352,-150.0,0.00016973,2]
[399921009,1766875838361,-150.0,0.00016986,2]
[399921010,1766875838371,-150.0,0.00016986,2]
[399921011,1766875838381,-150.0,0.00016986,2]
[399921012,1766875838390,-150.0,0.00016986,2]
[399921013,1766875838401,-150.0,0.00016986,2]
[399921014,1766875838410,-150.0,0.00016986,2]
[399921015,1766875838419,-168.0,0.0001699,2]
[399921016,1766875838429,-300.0,0.00016999,2]
[399921018,1766875838438,-300.0,0.00016999,2]
[399921019,1766875838448,-521259.06434202,0.00017,2]
[399921021,1766875838460,-5000.00603752,0.00017,2]
[399921022,1766875838471,-8902.40794345,0.00017,2]
[399921024,1766875838482,-797.96234596,0.00017,2]
[399921074,1766875839732,-5225.753394,0.00017,2]
[399921075,1766875839855,-293.15690041,0.00017,2]
[399921076,1766875839915,-2968.1,0.00017,2]
[399921083,1766875843425,-283.27,0.00017,2]
[399921084,1766875843437,-1632.89,0.00017,2]
[399921085,1766875843449,-444.471027,0.00017,2]
[399921086,1766875843461,-2353.88008,0.00017,2]
[399921087,1766875843472,-1000.0,0.00017,2]
[399921088,1766875843511,-1765.99018171,0.00017,2]
[399921089,1766875843522,-1426.9169098,0.00017,2]
[399921090,1766875844377,-71415.33538319,0.00017,2]
[399921092,1766875845719,-573.05047602,0.00017,2]
[399921093,1766875845731,-522.52533801,0.00017,2]
[399921094,1766875845743,-4523.48153345,0.00017,2]
[399921095,1766875845898,-1105.61969898,0.00017,2]
[399921096,1766875845911,-644.1737403,0.00017,2]
[399921097,1766875845970,-264.208,0.00017,2]
[399921098,1766875845982,-290.1,0.00017,2]
[399921099,1766875846000,-453.32660024,0.00017,2]
[399921100,1766875846031,-663.7042298,0.00017,2]
[399921101,1766875846043,-4791.0,0.00017,2]
[399921141,1766875928341,2133.95985038,7.945e-05,2]
[399921142,1766875928364,2295.08985038,7.945e-05,2]
[399921143,1766875928386,2295.08985038,7.945e-05,2]
[399921144,1766875928408,2295.08985038,7.945e-05,2]
[399921145,1766875928429,2295.08985038,7.945e-05,2]
[399921146,1766875928449,2295.08985038,7.945e-05,2]
[399921147,1766875928471,947.71651172,7.945e-05,2]
[399921573,1766877031852,-375.12799992,0.00014373,2]
[399921574,1766877031865,-124.87200008,0.00014373,2]
[399921575,1766877031878,-349.33093492,0.00014373,2]
[399921576,1766877031890,-250.66906508,0.00014373,2]
[399921577,1766877031900,-249.33093492,0.00014373,2]
[399921578,1766877031912,-19.66906508,0.00014373,2]
[399921579,1766877031922,-900.79620767,0.00014402,2]
[399921580,1766877031932,-195.0,0.00014402,2]
[399921581,1766877031942,-316.50522569,0.00014432,2]
[399921582,1766877031953,-1413.25471627,0.00014432,2]
[399921583,1766877031965,-529.36483573,0.00014432,2]
[399921584,1766877031977,-240.87522231,0.00014432,2]
[399921585,1766877031988,-131.63477867,0.00014918,2]
[399921586,1766877032004,-63.36522133,0.00014918,2]
[399921587,1766877032014,-210.47908403,0.00015287,2]
[399921588,1766877032026,-89.52091597,0.00015287,2]
[399921589,1766877032036,-300.0,0.00015287,2]
[399921590,1766877032046,-1200.0,0.00015287,2]
[399921591,1766877032056,-150.0,0.00015288,2]
[399921592,1766877032066,-150.0,0.00015288,2]
[399921593,1766877032076,-150.0,0.00015288,2]
[399921594,1766877032085,-150.0,0.00015288,2]
[399921595,1766877032095,-150.0,0.00015288,2]
[399921597,1766877032105,-150.0,0.00015288,2]
[399921599,1766877032116,-150.0,0.00015288,2]
[399921601,1766877032126,-150.0,0.00015288,2]
[399921603,1766877032136,-150.0,0.00015288,2]
[399921606,1766877032152,-200.0,0.00015318,2]
[399921608,1766877032162,-166.7,0.00015392,2]
[399921610,1766877032171,-166.66,0.00015397,2]
[399921612,1766877032181,-150.0,0.00015712,2]
[399921614,1766877032191,-166.66,0.00015722,2]
[399921616,1766877032200,-151.68984803,0.00015754,2]
[399921618,1766877032210,-195.0,0.0001581,2]
[399921620,1766877032221,-2354.62709299,0.0001581,2]
[399921622,1766877032234,-145.37290701,0.0001581,2]
[399921624,1766877032244,-410.06961219,0.0001581,2]
[399921627,1766877032255,-269.84867698,0.0001581,2]
[399921630,1766877032277,-484.112775,0.0001581,2]
[399921632,1766877032292,-1335.96893583,0.0001581,2]
[399921634,1766877032302,-195.0,0.0001581,2]
[399921636,1766877032313,-600.0,0.0001581,2]
[399921638,1766877032321,-106.10459054,0.00015843,2]
[399921706,1766877037879,-44.89540946,0.00015843,2]
[399921707,1766877037889,-815.804598,0.00015846,2]
[399921708,1766877037975,-988498.10229656,0.00015846,2]
[399921709,1766877037986,-583.72879,0.00015846,2]
[399921710,1766877037998,-1999.90010479,0.00015846,2]
[399921711,1766877038010,-337.11333192,0.00015846,2]
[399921712,1766877038086,-7765.35087873,0.00015846,2]
[399921713,1766877038096,-150.0,0.00015854,2]
[399921714,1766877038106,-150.0,0.00015854,2]
[399921715,1766877038116,-164.8406,0.00015929,2]
[399921716,1766877038125,-2500.0,0.00015929,2]
[399921717,1766877038135,-1000.0,0.00015945,2]
[399921718,1766877038145,-300.0,0.00015945,2]
[399921719,1766877038155,-646.75525156,0.00015946,2]
[399921720,1766877038164,-9107.51351451,0.00015946,2]
[399921721,1766877038174,-174.21218051,0.00015946,2]
[399921722,1766877038185,-500.0,0.00015973,2]
[399921723,1766877038195,-500.0,0.00015973,2]
[399921724,1766877038205,-1500.844,0.00015973,2]
[399921725,1766877038215,-151.0,0.00015974,2]
[399921726,1766877038225,-151.0,0.00015974,2]
[399921727,1766877038235,-151.0,0.00015977,2]
[399921728,1766877038245,-261.19,0.00016019,2]
[399921729,1766877038255,-200.0,0.00016019,2]
[399921730,1766877038265,-207.4,0.00016019,2]
[399921731,1766877038275,-151.0,0.00016019,2]
[399921732,1766877038285,-151.0,0.00016019,2]
[399921733,1766877038295,-151.0,0.00016019,2]
[399921734,1766877038305,-500.0,0.00016019,2]
[399921736,1766877038314,-151.0,0.00016019,2]
[399921738,1766877038324,-500.0,0.00016019,2]
[399921739,1766877038333,-151.0,0.00016019,2]
[399921740,1766877038342,-151.0,0.00016019,2]
[399921741,1766877038352,-151.0,0.00016019,2]
[399921742,1766877038362,-151.0,0.00016019,2]
[399921743,1766877038372,-151.0,0.00016019,2]
[399921744,1766877038382,-500.0,0.00016019,2]
[399921745,1766877038392,-151.0,0.00016019,2]
[399921746,1766877038403,-151.0,0.00016019,2]
[399921747,1766877038412,-151.0,0.00016019,2]
[399921748,1766877038422,-151.0,0.00016019,2]
[399921749,1766877038431,-151.0,0.00016019,2]
[399921750,1766877038442,-151.0,0.00016019,2]
[399921751,1766877038452,-255.0338629,0.00016019,2]
[399921752,1766877038462,-200.0,0.00016019,2]
[399921753,1766877038472,-151.0,0.00016019,2]
[399921754,1766877038482,-151.0,0.00016019,2]
[399921755,1766877038491,-151.0,0.00016019,2]
[399921756,1766877038501,-151.0,0.00016019,2]
[399921757,1766877038510,-151.0,0.00016019,2]
[399921758,1766877038520,-151.0,0.00016019,2]
[399921759,1766877038529,-151.0,0.00016019,2]
[399921760,1766877038539,-151.0,0.00016019,2]
[399921761,1766877038549,-151.0,0.00016019,2]
[399921762,1766877038558,-151.0,0.00016019,2]
[399921763,1766877038567,-151.0,0.00016019,2]
[399921764,1766877038577,-150.4135617,0.00016028,2]
[399921765,1766877038587,-500.0,0.00016028,2]
[399921766,1766877038597,-500.0,0.00016028,2]
[399921767,1766877038606,-500.0,0.00016028,2]
[399921768,1766877038615,-500.0,0.00016028,2]
[399921769,1766877038625,-500.0,0.00016028,2]
[399921770,1766877038635,-202.44615259,0.00016028,2]
[399921771,1766877038649,-191.75431658,0.00016028,2]
[399921772,1766877038659,-301.41898708,0.00016028,2]
[399921773,1766877038671,-156.14446635,0.00016028,2]
[399921774,1766877038680,-500.0,0.00016028,2]
[399921775,1766877038691,-204.70621579,0.00016028,2]
[399921780,1766877039959,-295.29378421,0.00016028,2]
[399921781,1766877039969,-500.0,0.00016028,2]
[399921782,1766877039979,-500.0,0.00016028,2]
[399921783,1766877039989,-166.66,0.00016046,2]
[399921784,1766877039999,-150.0,0.00016137,2]
[399921785,1766877040008,-150.0,0.00016137,2]
[399921786,1766877040018,-151.0,0.00016143,2]
[399921787,1766877040028,-261.19,0.00016293,2]
[399921788,1766877040038,-151.68984802,0.00016327,2]
[399921789,1766877040048,-166.66,0.0001637,2]
[399921790,1766877040058,-161.38,0.00016406,2]
[399921791,1766877040067,-150.0,0.0001642,2]
[399921792,1766877040077,-150.0,0.0001642,2]
[399921793,1766877040087,-500.0,0.00016421,2]
[399921794,1766877040097,-500.0,0.00016438,2]
[399921795,1766877040107,-500.0,0.00016438,2]
[399921796,1766877040117,-500.0,0.00016438,2]
[399921797,1766877040126,-500.0,0.00016438,2]
[399921798,1766877040136,-500.0,0.00016438,2]
[399921799,1766877040145,-500.0,0.00016438,2]
[399921800,1766877040155,-185.97947059,0.00016438,2]
[399921801,1766877040164,-500.0,0.00016438,2]
[399921802,1766877040174,-499.99999999,0.00016438,2]
[399921803,1766877040184,-575.79192848,0.00016521,2]
[399921804,1766877040414,-500.0,0.00016521,2]
[399921805,1766877040424,-150.0,0.00016562,2]
[399921806,1766877040433,-261.19,0.00016567,2]
[399921807,1766877040443,-150.0,0.00016617,2]
[399921808,1766877040453,-500.0,0.00016617,2]
[399921809,1766877040463,-150.0,0.00016617,2]
[399921810,1766877040473,-150.0,0.00016617,2]
[399921811,1766877040483,-150.0,0.00016617,2]
[399921812,1766877040493,-150.0,0.00016617,2]
[399921813,1766877040502,-150.0,0.00016617,2]
[399921814,1766877040512,-150.0,0.00016617,2]
[399921815,1766877040522,-150.0,0.00016617,2]
[399921816,1766877040531,-150.0,0.00016617,2]
[399921817,1766877040541,-150.0,0.00016617,2]
[399921818,1766877040550,-500.0,0.00016617,2]
[399921819,1766877040559,-150.0,0.00016617,2]
[399921820,1766877040569,-150.0,0.00016617,2]
[399921821,1766877040578,-150.0,0.00016617,2]
[399921822,1766877040588,-150.0,0.00016644,2]
[399921823,1766877040598,-500.0,0.00016644,2]
[399921824,1766877040608,-150.0,0.00016644,2]
[399921825,1766877040617,-150.0,0.00016644,2]
[399921826,1766877040627,-150.0,0.00016644,2]
[399921827,1766877040637,-150.0,0.00016644,2]
[399921828,1766877040647,-227.54541417,0.00016644,2]
[399921829,1766877040658,-150.0,0.00016644,2]
[399921830,1766877040667,-150.0,0.00016644,2]
[399921831,1766877040677,-150.0,0.00016644,2]
[399921832,1766877040686,-150.0,0.00016644,2]
[399921833,1766877040695,-500.0,0.00016644,2]
[399921834,1766877040705,-150.0,0.00016644,2]
[399921835,1766877040714,-151.0,0.00016669,2]
[399921836,1766877040724,-200.0,0.00016672,2]
[399921837,1766877040734,-500.0,0.00016672,2]
[399921838,1766877040744,-222.4917813,0.00016672,2]
[399921839,1766877040754,-200.0,0.00016672,2]
[399921840,1766877040764,-150.0,0.00016672,2]
[399921841,1766877040773,-200.0,0.00016672,2]
[399921842,1766877040783,-200.0,0.00016672,2]
[399921843,1766877040793,-150.0,0.00016672,2]
[399921844,1766877040802,-150.0,0.00016672,2]
[399921845,1766877040812,-150.0,0.00016672,2]
[399921846,1766877040822,-500.0,0.00016672,2]
[399921847,1766877040831,-150.0,0.00016672,2]
[399921848,1766877040841,-166.66,0.00016694,2]
[399921849,1766877040850,-456.0,0.00016699,2]
[399921850,1766877040860,-150.0,0.00016699,2]
[399921851,1766877040869,-150.0,0.00016699,2]
[399921852,1766877040879,-200.0,0.00016699,2]
[399921853,1766877040888,-150.0,0.00016699,2]
[399921854,1766877040897,-188.0,0.00016699,2]
[399921855,1766877040907,-150.0,0.00016699,2]
[399921856,1766877040916,-168.55832196,0.00016716,2]
[399921857,1766877040933,-150.0,0.00016716,2]
[399921858,1766877040946,-390.0,0.00016726,2]
[399921859,1766877040956,-150.0,0.00016727,2]
[399921860,1766877040965,-150.0,0.00016727,2]
[399921861,1766877040975,-250.0,0.00016727,2]
[399921862,1766877040984,-150.0,0.00016727,2]
[399921863,1766877040994,-224.0,0.00016754,2]
[399921864,1766877041004,-250.0,0.00016754,2]
[399921865,1766877041014,-250.0,0.00016754,2]
[399921866,1766877041024,-1000.0,0.000168,2]
[399921867,1766877041033,-1680.0,0.0001681,2]
[399921868,1766877041043,-416.44936262,0.000169,2]
[399921869,1766877041053,-151.68984802,0.000169,2]
[399921870,1766877041064,-2177.1884665,0.000169,2]
[399921871,1766877041073,-269.21010668,0.00016985,2]
[399921872,1766877041083,-150.0,0.00016986,2]
[399921873,1766877041093,-150.0,0.00016986,2]
[399921874,1766877041103,-150.0,0.00016986,2]
[399921875,1766877041113,-150.0,0.00016986,2]
[399921876,1766877041122,-150.0,0.00016986,2]
[399921877,1766877041132,-150.0,0.00016986,2]
[399921878,1766877041142,-111443.7884413,0.00016995,2]
[399921879,1766877041151,-21224.9013579,0.00016995,2]
[399921880,1766877041161,-38176.4066211,0.00016995,2]
[399921881,1766877041170,-448.3747471,0.00016995,2]
[399921882,1766877041180,-151.0,0.00016997,2]
[399921883,1766877041189,-151.0,0.00016997,2]
[399921884,1766877041199,-150.0,0.00016999,2]
[399921885,1766877041209,-500.0,0.00016999,2]
[399921886,1766877041218,-500.0,0.00016999,2]
[399921887,1766877041227,-500.0,0.00016999,2]
[399921888,1766877041237,-500.0,0.00016999,2]
[399921889,1766877041246,-500.0,0.00016999,2]
[399921890,1766877041256,-500.0,0.00016999,2]
[399921891,1766877041265,-500.0,0.00016999,2]
[399921892,1766877041274,-500.0,0.00016999,2]
[399921893,1766877041283,-399.54,0.00016999,2]
[399921894,1766877041292,-300.0,0.00016999,2]
[399921895,1766877041302,-72867.78683388,0.00017,2]
[399921896,1766877041456,-2093.22915044,0.00017,2]
[399921897,1766877041467,-1726.20261433,0.00017,2]
[399921898,1766877041479,-18685.83652905,0.00017,2]
[399921899,1766877041490,-92482.3384225,0.00017,2]
[399921900,1766877041505,-632.12874861,0.00017,2]
[399921901,1766877041516,-882.80108696,0.00017,2]
[399921902,1766877041527,-3695.32561556,0.00017,2]
[399921906,1766877043988,-336552.58295313,0.00017,2]
[399921907,1766877045190,-1119.65292951,0.00017,2]
[399921908,1766877045302,-1401.14668721,0.00017,2]
[399921909,1766877045324,-150775.28637032,0.00017,2]
[399921913,1766877045982,-1746.80500616,0.00017,2]
[399921914,1766877045994,-1100.0,0.00017,2]
[399921915,1766877046005,-47346.47155166,0.00017,2]
[399921916,1766877046166,-2939.5,0.00017,2]
[399921917,1766877046177,-18790.14322855,0.00017,2]
[399921918,1766877046189,-341.39527051,0.00017,2]
[399921919,1766877046200,-1455.72961459,0.00017,2]
[399921920,1766877046215,-706.41106177,0.00017,2]
[399921921,1766877046307,-652.03613473,0.00017,2]
[399921922,1766877046318,-3474.04951489,0.00017,2]
[399922002,1766877522064,912.7,7.732e-05,2]
[399922003,1766877522265,434.67333866,8.139e-05,2]
[399922004,1766877522293,478.02666134,8.139e-05,2]
[399922005,1766877522471,912.7,8.545e-05,2]
[399922006,1766877522660,904.36318904,8.952e-05,2]
[399922007,1766877522687,8.33681096,8.952e-05,2]
[399922008,1766877522856,912.7,9.359e-05,2]
[399922009,1766877523046,912.7,9.766e-05,2]
[399922010,1766877523253,461.35303942,0.00010173,2]
[399922011,1766877523278,451.34696058,0.00010173,2]
[399922012,1766877523457,912.7,0.0001058,2]
[399922013,1766877523654,912.7,0.00010987,2]
[399922014,1766877523835,18.3428898,0.00011394,2]
[399922015,1766877523873,894.3571102,0.00011394,2]
[399922016,1766877524038,912.7,0.00011801,2]
[399922017,1766877524244,912.7,0.00012208,2]
[399922018,1766877524441,912.7,0.00012615,2]
[399922019,1766877524944,912.7,0.00013022,2]
[399922020,1766877525879,-402.15136567,0.00013429,2]
[399922026,1766877614186,-510.54863433,0.00013429,2]
[399922027,1766877614213,-34.45531924,0.00013429,2]
[399922143,1766878232040,-260.0,0.00013429,2]
[399922144,1766878232050,-392.13,0.00013699,2]
[399922146,1766878232060,-635.99252,0.00013836,2]
[399922147,1766878232071,-276.70748,0.00013836,2]
[399922148,1766878232081,-1201.894036,0.00014171,2]
[399922149,1766878232091,-912.7,0.00014242,2]
[399922150,1766878232101,-1200.0,0.00014328,2]
[399922151,1766878232111,-2693.80370664,0.00014329,2]
[399922152,1766878232122,-556.64674786,0.00014329,2]
[399922153,1766878232134,-1899.0895455,0.00014329,2]
[399922154,1766878232143,-300.0,0.00014346,2]
[399922155,1766878232153,-300.0,0.00014346,2]
[399922156,1766878232163,-300.0,0.00014346,2]
[399922157,1766878232172,-11922.0511502,0.00014347,2]
[399922158,1766878232189,-2740.89999996,0.00014347,2]
[399922160,1766878232204,-19589.45884984,0.00014347,2]
[399922162,1766878232214,-185.58755146,0.00014373,2]
[399922163,1766878232223,-1500.0,0.00014558,2]
[399922165,1766878232232,-334.65368944,0.00014575,2]
[399922167,1766878232242,-431.61416669,0.00014575,2]
[399922169,1766878232251,-1000.0,0.00014603,2]
[399922171,1766878232262,-912.7,0.00014649,2]
[399922173,1766878232280,-150.0,0.00014769,2]
[399922175,1766878232289,-1200.0,0.00014903,2]
[399922176,1766878232299,-150.0,0.00014978,2]
[399922177,1766878232310,-912.7,0.00015056,2]
[399922179,1766878232320,-777.39,0.00015174,2]
[399922180,1766878232329,-207.4,0.00015196,2]
[399922182,1766878232340,-500.0,0.00015196,2]
[399922184,1766878232351,-200.0,0.00015196,2]
[399922186,1766878232361,-500.0,0.00015196,2]
[399922187,1766878232370,-500.0,0.00015196,2]
[399922189,1766878232379,-500.0,0.00015196,2]
[399922190,1766878232389,-500.0,0.00015196,2]
[399922192,1766878232398,-500.0,0.00015196,2]
[399922194,1766878232408,-500.0,0.00015196,2]
[399922196,1766878232418,-500.0,0.00015196,2]
[399922198,1766878232431,-500.0,0.00015196,2]
[399922200,1766878232440,-500.0,0.00015196,2]
[399922201,1766878232450,-500.0,0.00015196,2]
[399922203,1766878232459,-500.0,0.00015196,2]
[399922205,1766878232468,-500.0,0.00015196,2]
[399922206,1766878232478,-500.0,0.00015196,2]
[399922208,1766878232487,-500.0,0.00015196,2]
[399922210,1766878232497,-500.0,0.00015196,2]
[399922212,1766878232506,-500.0,0.00015196,2]
[399922213,1766878232515,-500.0,0.00015196,2]
[399922215,1766878232524,-500.0,0.00015196,2]
[399922217,1766878232534,-500.0,0.00015196,2]
[399922219,1766878232543,-500.0,0.00015196,2]
[399922220,1766878232552,-500.0,0.00015196,2]
[399922222,1766878232563,-500.0,0.00015196,2]
[399922224,1766878232572,-151.0,0.00015196,2]
[399922226,1766878232581,-151.0,0.00015196,2]
[399922228,1766878232591,-151.0,0.00015196,2]
[399922230,1766878232600,-151.0,0.00015196,2]
[399922231,1766878232610,-151.0,0.00015196,2]
[399922233,1766878232619,-151.0,0.00015196,2]
[399922235,1766878232629,-200.0,0.00015196,2]
[399922237,1766878232638,-151.0,0.00015196,2]
[399922239,1766878232648,-151.0,0.00015196,2]
[399922241,1766878232657,-151.0,0.00015196,2]
[399922243,1766878232667,-151.0,0.00015196,2]
[399922245,1766878232676,-151.0,0.00015196,2]
[399922246,1766878232686,-500.0,0.00015196,2]
[399922248,1766878232695,-3240.0,0.00015205,2]
[399922250,1766878232705,-912.7,0.00015463,2]
[399922252,1766878232714,-185.58755146,0.00015529,2]
[399922254,1766878232723,-861.95131222,0.00015611,2]
[399922255,1766878232735,-889.93719024,0.00015611,2]
[399922257,1766878232745,-643.94563535,0.00015644,2]
[399922259,1766878232756,-661.42405583,0.00015644,2]
[399922260,1766878232767,-480.71,0.00015644,2]
[399922261,1766878232779,-1060.77904205,0.00015644,2]
[399922262,1766878232791,-1238.93284746,0.00015644,2]
[399922263,1766878232802,-884.60538657,0.00015644,2]
[399922264,1766878232813,-346.84803172,0.00015644,2]
[399922265,1766878232824,-344.17171453,0.00015644,2]
[399922266,1766878232834,-464.3744897,0.00015644,2]
[399922270,1766878238159,-510.0107198,0.00015644,2]
[399922271,1766878238178,-1663.68431195,0.00015644,2]
[399922272,1766878238199,-3347.09028362,0.00015644,2]
[399922273,1766878238298,-328.88666808,0.00015644,2]
[399922274,1766878238316,-620.0000001,0.00015644,2]
[399922275,1766878240151,-10493.52891979,0.00015644,2]
[399922276,1766878240161,-500.0,0.00015672,2]
[399922277,1766878240171,-203.90134874,0.00015672,2]
[399922278,1766878240180,-302.1693621,0.00015672,2]
[399922279,1766878240189,-176.51377932,0.00015672,2]
[399922280,1766878240199,-500.0,0.00015672,2]
[399922281,1766878240209,-353.99698717,0.00015672,2]
[399922282,1766878240218,-500.0,0.00015672,2]
[399922283,1766878240228,-411.60425215,0.00015672,2]
[399922284,1766878240245,-165.77398772,0.00015672,2]
[399922285,1766878240256,-500.0,0.00015672,2]
[399922286,1766878240267,-500.0,0.00015672,2]
[399922287,1766878240278,-500.0,0.00015672,2]
[399922288,1766878240288,-500.0,0.00015672,2]
[399922289,1766878240299,-500.0,0.00015672,2]
[399922290,1766878240309,-500.0,0.00015672,2]
[399922291,1766878240319,-500.0,0.00015672,2]
[399922292,1766878240328,-500.0,0.00015672,2]
[399922293,1766878240338,-500.0,0.00015672,2]
[399922294,1766878240350,-125.08822618,0.00015672,2]
[399922295,1766878240362,-374.91177382,0.00015672,2]
[399922296,1766878240372,-500.0,0.00015672,2]
[399922297,1766878240381,-343.79128419,0.00015672,2]
[399922298,1766878240393,-156.20871581,0.00015672,2]
[399922299,1766878240403,-413.16603334,0.00015672,2]
[399922300,1766878240415,-86.83396666,0.00015672,2]
[399922301,1766878240424,-500.0,0.00015672,2]
[399922302,1766878240434,-500.0,0.00015672,2]
[399922303,1766878240443,-500.0,0.00015672,2]
[399922304,1766878240453,-315.12603334,0.00015672,2]
[399922305,1766878240465,-184.87396666,0.00015672,2]
[399922306,1766878240475,-69.48404929,0.00015672,2]
[399922307,1766878240713,-0.00105123,0.00015672,2]
[399922327,1766878244183,-430.51489948,0.00015672,2]